bitfinex-derivatives/quotes_ETHF0:USTF0_20241026
["timestamp","ask_amount","ask_price","bid_price","bid_amount"]
[1729975164357,5.30536169,2497.0,2496.4,3.2078]
[1729975164563,0.91,2497.1,2496.6,0.40104]
[1729975164564,2.8399,2496.9,2496.6,0.40104]
[1729975164861,1.30056169,2496.7,2496.5,0.40105]
[1729975165056,2.61161169,2496.6,2496.3,0.40109]
[1729975165261,1.30056169,2496.5,2496.3,0.40109]
[1729975165450,2.09686169,2496.5,2496.3,0.40109]
[1729975165762,1.30056169,2496.4,2496.2,1.70165169]
[1729975165964,1.30056169,2496.4,2495.8,4.2107]
[1729975165965,2.09686169,2496.5,2496.4,0.40107]
[1729975166262,0.7963,2496.5,2496.4,0.40107]
[1729975166465,0.7963,2496.5,2496.4,3.60887]
[1729975166963,0.7963,2496.5,2496.4,4.90943169]
[1729975167155,0.91,2496.6,2496.5,0.40106]
[1729975167362,1.31104,2496.6,2496.4,4.90942169]
[1729975167559,0.91,2496.6,2496.4,4.90942169]
[1729975167751,0.91,2496.6,2496.4,4.50836169]
[1729975167953,0.91,2496.6,2496.5,0.40106]
[1729975168656,1.30056169,2496.7,2496.4,4.50836169]
[1729975168864,0.91,2496.6,2496.5,1.70162169]
[1729975169754,0.7875,2496.8,2496.5,1.30056169]
[1729975169949,0.91,2496.7,2496.6,0.40103]
[1729975172148,0.91,2496.7,2496.5,1.20515]
[1729975172762,4.9156,2496.7,2496.3,3.2078]
[1729975172962,0.40106,2496.5,2496.2,0.4011]
[1729975173258,0.40106,2496.5,2496.3,0.40109]
[1729975173463,0.7551,2496.4,2496.3,0.40109]
[1729975173862,0.7551,2496.4,2496.2,1.1862]
[1729975174361,0.40109,2496.3,2496.2,0.7851]
[1729975175163,0.7551,2496.4,2496.2,0.7851]
[1729975175367,1.15619,2496.4,2496.2,0.7851]
[1729975176059,0.40109,2496.3,2496.2,0.7851]
[1729975176363,10.78592503,2496.4,2495.9,0.40115]
[1729975176565,10.78592503,2496.4,2496.0,0.12541222]
[1729975176566,0.91,2496.3,2496.0,0.12541222]
[1729975176869,0.40112,2496.1,2495.8,0.40116]
[1729975177062,0.7644,2496.0,2495.9,0.12541521]
[1729975177266,1.16554,2496.0,2495.9,0.12541521]
[1729975177460,1.16554,2496.0,2495.9,0.12541629]
[1729975178760,0.7644,2496.0,2495.9,0.12541629]
[1729975179570,1.16554,2496.0,2495.9,0.12541629]
[1729975181061,0.7644,2496.0,2495.9,0.12541722]
[1729975181258,1.16554,2496.0,2495.9,0.12541722]
[1729975181458,0.40116,2495.9,2495.7,1.5722]
[1729975181655,0.91,2495.8,2495.7,1.5722]
[1729975181859,0.91,2495.8,2495.7,1.69761836]
[1729975182059,1.31117,2495.8,2495.7,0.12541836]
[1729975182262,6.08467,2495.8,2495.7,0.12541836]
[1729975182570,6.08467,2495.8,2495.5,0.4012]
[1729975182768,2.07747,2495.8,2495.6,0.12542183]
[1729975182971,1.6763,2495.8,2495.4,3.2078]
[1729975183275,2.07747,2495.8,2495.5,0.52663197]
[1729975183465,2.07747,2495.8,2495.4,3.2078]
[1729975183466,1.6763,2495.8,2495.6,0.4012]
[1729975184167,2.07748,2495.8,2495.5,0.40121]
[1729975184360,2.07748,2495.8,2495.4,3.2078]
[1729975184566,1.6763,2495.8,2495.5,0.12542209]
[1729975184769,2.07747,2495.8,2495.4,3.2078]
[1729975184977,2.07747,2495.8,2495.5,0.5266321]
[1729975185165,2.07747,2495.8,2495.5,0.40121]
[1729975185361,5.28527,2495.8,2495.5,0.40121]
[1729975186367,4.8841,2495.8,2495.5,0.40121]
[1729975186563,0.40119,2495.7,2495.3,1.6092]
[1729975186770,5.28527,2495.8,2495.5,0.40121]
[1729975186965,4.8841,2495.8,2495.3,1.6092]
[1729975187166,5.28528,2495.8,2495.5,0.40121]
[1729975188370,0.4012,2495.7,2495.4,0.40123]
[1729975188568,0.40119,2495.7,2495.4,0.40122]
[1729975188871,1.21971,2495.6,2495.3,2.01043]
[1729975189072,1.21971,2495.6,2495.4,0.12542393]
[1729975189380,0.8185,2495.6,2495.3,1.6092]
[1729975189572,1.2197,2495.6,2495.4,0.52665342]
[1729975189767,1.2197,2495.6,2495.3,2.01044]
[1729975190073,1.2197,2495.6,2495.4,0.1254234]
[1729975190374,1.2197,2495.6,2495.4,1.70215505]
[1729975190375,2.11942505,2495.6,2495.4,1.70215505]
[1729975190668,2.11942505,2495.6,2495.5,1.70214505]
[1729975191068,2.11942505,2495.6,2495.5,1.82756828]
[1729975191261,4.1178,2495.8,2495.6,0.4012]
[1729975191465,3.2078,2495.8,2495.7,2.90282505]
[1729975191676,5.81989505,2495.8,2495.7,0.8162]
[1729975192070,9.82709505,2495.8,2495.5,1.70213505]
[1729975192277,0.8041,2495.7,2495.5,1.70213505]
[1729975192577,2.10502505,2495.7,2495.5,1.70213505]
[1729975193077,2.10502505,2495.7,2495.6,0.4012]
[1729975194378,0.8041,2495.7,2495.6,0.4012]
[1729975194584,0.8041,2495.7,2495.5,0.40121]
[1729975196277,1.20529,2495.7,2495.4,0.40122]
[1729975196673,1.2053,2495.7,2495.4,0.40122]
[1729975197680,0.8041,2495.7,2495.5,0.40121]
[1729975198169,1.2053,2495.7,2495.4,0.40123]
[1729975198372,0.8041,2495.7,2495.4,0.40123]
[1729975198684,1.20529,2495.7,2495.4,0.40123]
[1729975200168,1.2053,2495.7,2495.4,0.40123]
[1729975200373,0.4012,2495.6,2495.4,0.40123]
[1729975200571,1.2053,2495.7,2495.4,0.40123]
[1729975200879,0.40121,2495.6,2495.3,2.00314]
[1729975201074,0.40121,2495.6,2495.4,0.12542352]
[1729975201275,0.40121,2495.6,2495.3,1.6019]
[1729975201481,1.20529,2495.7,2495.4,0.52665312]
[1729975201675,1.20529,2495.7,2495.4,0.40123]
[1729975202073,0.8041,2495.7,2495.5,0.40121]
[1729975202366,0.8041,2495.7,2495.3,1.6019]
[1729975202572,0.40121,2495.6,2495.4,0.12542296]
[1729975202774,1.20529,2495.7,2495.4,0.40123]
[1729975202979,0.40122,2495.5,2495.3,1.6019]
[1729975203179,0.40121,2495.6,2495.4,0.12542492]
[1729975203380,0.40121,2495.6,2495.3,2.00314]
[1729975203685,0.40121,2495.6,2495.4,0.12542399]
[1729975203876,0.40121,2495.6,2495.3,2.00314]
[1729975204185,0.40121,2495.6,2495.4,0.12542386]
[1729975204373,0.40121,2495.6,2495.3,2.00314]
[1729975204681,0.8041,2495.7,2495.4,0.12542388]
[1729975204876,0.40121,2495.6,2495.3,2.00314]
[1729975205083,0.40121,2495.6,2495.4,0.12542385]
[1729975205277,0.40121,2495.6,2495.3,2.00314]
[1729975205483,1.2053,2495.7,2495.4,0.52665384]
[1729975205678,0.8041,2495.7,2495.3,1.6019]
[1729975205879,3.2078,2495.8,2495.4,0.12542374]
[1729975206071,3.2078,2495.8,2495.6,0.40119]
[1729975206275,3.2078,2495.8,2495.7,2.3213]
[1729975206477,4.1178,2495.8,2495.7,2.3213]
[1729975206683,4.51897,2495.8,2495.7,2.3213]
[1729975206979,4.1178,2495.8,2495.7,2.3213]
[1729975207372,3.2078,2495.8,2495.7,2.3213]
[1729975207575,4.1178,2495.8,2495.7,2.72249]
[1729975208478,4.1178,2495.8,2495.7,2.3213]
[1729975208876,4.51897,2495.8,2495.7,2.3213]
[1729975209076,4.51897,2495.8,2495.7,1.5476]
[1729975209380,4.1178,2495.8,2495.7,1.5476]
[1729975209679,4.1178,2495.8,2495.7,1.94879]
[1729975210374,4.1178,2495.8,2495.7,1.5476]
[1729975211076,4.1178,2495.8,2495.7,2.3328]
[1729975211269,3.2078,2495.8,2495.7,2.73399]
[1729975211471,0.91,2496.1,2496.0,0.40113]
[1729975211776,0.91,2496.1,2496.0,0.40114]
[1729975212175,0.7968,2496.3,2496.0,0.40114]
[1729975212476,0.7968,2496.3,2496.1,0.8258]
[1729975212477,1.31111,2496.2,2496.1,0.8258]
[1729975212679,0.91,2496.2,2496.1,0.8258]
[1729975213081,0.91,2496.2,2496.1,1.6091]
[1729975213082,1.3111,2496.2,2496.1,1.6091]
[1729975213779,0.91,2496.2,2496.1,1.6091]
[1729975214486,1.3111,2496.2,2496.1,1.6091]
[1729975214783,0.91,2496.2,2496.1,1.6091]
[1729975215781,1.3111,2496.2,2496.1,1.6091]
[1729975216081,1.6256,2496.7,2496.1,1.6091]
[1729975216272,1.6256,2496.7,2496.2,4.0311]
[1729975216273,1.7227,2496.6,2496.2,4.0311]
[1729975216473,1.30039987,2496.4,2496.2,5.73258987]
[1729975216680,1.30039987,2496.4,2496.3,0.40109]
[1729975216880,1.30039987,2496.4,2496.2,5.33149987]
[1729975216881,1.30039987,2496.4,2496.2,5.73258987]
[1729975217273,1.30039987,2496.4,2496.2,5.33149987]
[1729975217483,1.30039987,2496.3,2496.2,5.33149987]
[1729975217677,1.30039987,2496.3,2496.2,4.4322]
[1729975217982,1.30039987,2496.3,2496.2,4.15651077]
[1729975218282,1.30039987,2496.3,2496.2,4.55761077]
[1729975218472,1.30039987,2496.3,2496.2,4.15651077]
[1729975218677,1.30039987,2496.3,2496.2,4.55761077]
[1729975220375,1.30039987,2496.3,2496.2,4.55761133]
[1729975220588,1.30039987,2496.3,2496.2,4.15651133]
[1729975220888,1.30039987,2496.3,2496.2,4.0311]
[1729975221085,1.70148987,2496.3,2496.2,3.2078]
[1729975221285,2.48608987,2496.3,2496.2,3.2078]
[1729975221586,2.08499987,2496.3,2496.2,3.6089]
[1729975221790,2.08499987,2496.3,2496.2,3.2078]
[1729975222186,2.08499987,2496.3,2496.2,3.6089]
[1729975222578,2.08499987,2496.3,2496.1,2.4144]
[1729975222782,1.30039987,2496.2,2496.1,2.81551]
[1729975223182,1.30039987,2496.2,2496.1,6.02331]
[1729975223383,1.30039987,2496.2,2496.1,5.6222]
[1729975223592,1.70149987,2496.2,2496.1,5.6222]
[1729975223787,2.53289987,2496.2,2496.1,5.6222]
[1729975223977,2.53289987,2496.2,2496.1,6.02332]
[1729975224378,1.70149987,2496.2,2496.1,6.02332]
[1729975226089,1.70149987,2496.2,2496.1,2.81552]
[1729975226394,1.70149987,2496.2,2496.1,6.02332]
[1729975226591,1.70149987,2496.2,2496.1,2.81552]
[1729975227590,1.70149987,2496.2,2496.1,6.02332]
[1729975228400,1.70149987,2496.2,2496.1,6.1487554]
[1729975229098,2.61047987,2496.4,2496.3,0.40109]
[1729975229299,0.40109,2496.3,2496.2,0.40109]
[1729975229901,2.61047987,2496.4,2496.2,0.40109]
[1729975230096,2.61047987,2496.4,2496.1,3.71479987]
[1729975230297,2.61047987,2496.4,2496.2,3.2078]
[1729975230298,2.20939987,2496.4,2496.2,3.2078]
[1729975230498,0.40109,2496.3,2496.2,3.6089]
[1729975230699,2.61047987,2496.4,2496.2,3.6089]
[1729975232201,1.70148987,2496.3,2496.2,3.6089]
[1729975232403,1.30039987,2496.3,2496.2,3.6089]
[1729975233600,1.70148987,2496.3,2496.2,3.2078]
[1729975233802,1.70148987,2496.3,2496.2,3.6089]
[1729975234304,1.30039987,2496.3,2496.2,3.6089]
[1729975235002,0.909,2496.4,2496.3,0.40109]
[1729975235207,0.909,2496.4,2496.3,1.70148987]
[1729975235600,0.909,2496.4,2496.3,0.40109]
[1729975237701,3.2078,2496.8,2496.7,0.40102]
[1729975237900,1.30039987,2497.1,2496.5,3.2078]
[1729975238207,1.30039987,2496.9,2496.8,0.40101]
[1729975238608,1.99789987,2496.9,2496.8,0.40101]
[1729975238903,1.99789987,2496.9,2496.7,0.40101]
[1729975239107,1.99789987,2496.9,2496.8,0.40101]
[1729975239604,2.90689987,2496.9,2496.7,0.40102]
[1729975239903,2.90689987,2496.9,2496.8,0.40101]
[1729975240912,2.90689987,2496.9,2496.7,1.70140987]
[1729975241204,1.30039987,2496.8,2496.7,1.70141987]
[1729975244804,2.90689987,2496.9,2496.7,1.70141987]
[1729975245910,2.90689987,2496.9,2496.6,5.2415]
[1729975246098,1.30039987,2496.7,2496.6,6.94292987]
[1729975247005,1.30039987,2496.8,2496.6,6.94292987]
[1729975247413,0.663,2496.7,2496.6,6.94292987]
[1729975257027,0.663,2496.7,2496.6,3.73512987]
[1729975260727,2.00751,2496.9,2496.8,0.40101]
[1729975260922,2.65981,2496.9,2496.8,1.30039987]
[1729975261423,2.2588,2496.9,2496.8,1.30039987]
[1729975261629,2.65979,2496.9,2496.8,1.30039987]
[1729975262331,2.2588,2496.9,2496.8,1.30039987]
[1729975262532,2.65979,2496.9,2496.8,1.30039987]
[1729975263132,2.2588,2496.9,2496.8,1.30039987]
[1729975263430,2.65979,2496.9,2496.8,1.30039987]
[1729975263633,2.2588,2496.9,2496.6,2.0337]
[1729975263826,0.40101,2496.8,2496.7,1.30039987]
[1729975265140,2.6598,2496.9,2496.7,1.70141987]
[1729975265635,2.6598,2496.9,2496.7,1.30039987]
[1729975266134,2.6598,2496.9,2496.7,1.70141987]
[1729975267436,2.6598,2496.9,2496.7,1.30039987]
[1729975267636,0.40101,2496.8,2496.7,1.30039987]
[1729975267827,2.2588,2496.9,2496.7,1.30039987]
[1729975268134,2.6598,2496.9,2496.7,1.30039987]
[1729975269937,2.6598,2496.9,2496.7,1.70141987]
[1729975270929,2.6598,2496.9,2496.7,1.30039987]
[1729975271234,2.6598,2496.9,2496.7,1.70141987]
[1729975272227,2.6598,2496.9,2496.7,1.30039987]
[1729975273436,2.6598,2496.9,2496.7,1.70141987]
[1729975274436,2.6598,2496.9,2496.7,1.30039987]
[1729975274834,2.6598,2496.9,2496.7,1.70141987]
[1729975275235,2.2588,2496.9,2496.7,1.70141987]
[1729975275434,2.65979,2496.9,2496.7,1.70141987]
[1729975276931,2.2588,2496.9,2496.7,1.70141987]
[1729975277236,2.65979,2496.9,2496.7,1.70141987]
[1729975278232,2.2588,2496.9,2496.7,1.70141987]
[1729975278537,0.909,2496.9,2496.8,1.30039987]
[1729975278740,1.30999,2496.9,2496.8,1.30039987]
[1729975279550,0.907,2496.9,2496.8,1.30039987]
[1729975279740,0.907,2496.9,2496.8,1.70138987]
[1729975281033,0.907,2496.9,2496.8,1.82679655]
[1729975283446,0.907,2496.9,2496.8,2.0274473]
[1729975284047,0.907,2496.9,2496.8,2.0274673]
[1729975284244,0.907,2496.9,2496.8,2.02747175]
[1729975284848,0.907,2496.9,2496.8,2.02747115]
[1729975285146,0.907,2496.9,2496.8,1.62646115]
[1729975285344,0.907,2496.9,2496.8,1.42580828]
[1729975285851,0.907,2496.9,2496.8,1.82681828]
[1729975286749,0.907,2496.9,2496.8,2.02747063]
[1729975286944,0.907,2496.9,2496.8,1.82681828]
[1729975287754,0.907,2496.9,2496.8,1.30039987]
[1729975287956,0.907,2496.9,2496.8,1.42580789]
[1729975288852,0.907,2496.9,2496.8,1.82681789]
[1729975290656,0.907,2496.9,2496.8,1.42580789]
[1729975291654,0.907,2496.9,2496.8,1.82681846]
[1729975293052,0.907,2496.9,2496.8,1.42580846]
[1729975293653,0.907,2496.9,2496.8,1.82681846]
[1729975294150,0.907,2496.9,2496.8,1.42580846]
[1729975294351,0.907,2496.9,2496.8,1.82681846]
[1729975295556,1.06397,2497.1,2496.8,1.82681846]
[1729975295851,0.907,2497.0,2496.9,0.12540859]
[1729975296057,1.30798,2497.0,2496.9,2.12720846]
[1729975296255,1.30798,2497.0,2496.9,2.00179987]
[1729975299852,0.907,2497.0,2496.9,2.40278987]
[1729975300055,1.30798,2497.0,2496.9,2.00179987]
[1729975302857,1.30798,2497.0,2496.7,1.30039987]
[1729975303066,0.40102,2496.8,2496.7,1.30039987]
[1729975303363,0.40102,2496.8,2496.7,1.42581168]
[1729975306263,0.40102,2496.8,2496.7,1.30039987]
[1729975306561,0.40102,2496.8,2496.7,1.42581393]
[1729975306754,0.401,2496.9,2496.7,1.42581393]
[1729975306953,1.5712,2497.0,2496.9,1.30039987]
[1729975307155,1.63458395,2497.0,2496.9,1.30039987]
[1729975307462,6.04036395,2497.0,2496.9,1.30039987]
[1729975308953,5.97698,2497.0,2496.9,1.30039987]
[1729975309150,6.10374732,2497.0,2496.9,1.30039987]
[1729975309656,6.10374764,2497.0,2496.9,1.30039987]
[1729975310254,5.43954764,2497.0,2496.9,1.30039987]
[1729975310452,1.43474764,2497.0,2496.9,1.30039987]
[1729975310860,5.43954764,2497.0,2496.9,1.30039987]
[1729975311563,1.43474764,2497.0,2496.9,1.30039987]
[1729975311964,5.43954764,2497.0,2496.9,1.30039987]
[1729975312660,5.37616365,2497.0,2496.9,1.30039987]
[1729975314757,1.37136365,2497.0,2496.9,1.30039987]
[1729975314962,5.37616365,2497.0,2496.9,1.30039987]
[1729975315158,1.37136365,2497.0,2496.9,1.30039987]
[1729975315754,1.30798,2497.0,2496.9,1.30039987]
[1729975319857,0.907,2497.0,2496.9,1.30039987]
[1729975320062,1.30798,2497.0,2496.9,1.42580849]
[1729975321062,1.30798,2497.0,2496.9,1.30039987]
[1729975321259,1.30798,2497.0,2496.9,1.42580932]
[1729975321468,1.30798,2497.0,2496.9,1.30039987]
[1729975321667,1.30798,2497.0,2496.9,1.42580893]
[1729975321863,0.907,2497.0,2496.9,1.30039987]
[1729975322069,0.907,2497.0,2496.9,1.42580854]
[1729975322366,1.30798,2497.0,2496.9,1.42580854]
[1729975322863,1.30798,2497.0,2496.9,1.30039987]
[1729975323065,1.30798,2497.0,2496.9,1.42580954]
[1729975324667,1.30798,2497.0,2496.9,1.42580795]
[1729975324971,0.907,2497.0,2496.9,1.42580795]
[1729975325172,1.06397,2497.1,2496.9,1.42580795]
[1729975325360,1.06397,2497.1,2497.0,0.7006]
[1729975325563,1.96997,2497.1,2497.0,0.7006]
[1729975331177,0.40095,2497.2,2497.0,2.00099987]
[1729975331378,0.906,2497.1,2497.0,1.77738]
[1729975331581,0.6708,2497.4,2497.0,3.00283033]
[1729975331774,1.30693,2497.3,2497.2,1.30039987]
[1729975331975,0.40093,2497.3,2497.2,1.4257962]
[1729975332177,1.30693,2497.3,2497.2,1.4257962]
[1729975333281,0.40093,2497.3,2497.2,1.30039987]
[1729975333575,1.30693,2497.3,2497.2,1.30039987]
[1729975333876,0.906,2497.3,2497.2,1.30039987]
[1729975334081,1.30693,2497.3,2497.2,1.30039987]
[1729975334982,0.906,2497.3,2497.2,1.30039987]
[1729975337885,1.30693,2497.3,2497.2,1.30039987]
[1729975338274,1.30693,2497.3,2496.9,76.725]
[1729975338275,6.21119987,2497.3,2496.9,76.725]
[1729975338476,1.70137987,2497.0,2496.9,76.725]
[1729975339793,5.70617987,2497.0,2496.9,74.44093683]
[1729975339974,5.76957031,2497.0,2496.9,74.03898626]
[1729975340283,10.09112225,2497.0,2496.9,74.03898626]
[1729975341981,11.05859158,2497.0,2496.9,74.03898626]
[1729975342581,14.26639158,2497.0,2496.9,74.03898626]
[1729975343990,14.26639608,2497.0,2496.9,74.03898626]
[1729975347888,14.26639596,2497.0,2496.9,74.03898626]
[1729975348486,14.26639645,2497.0,2496.9,74.03898626]
[1729975348790,15.56679632,2497.0,2496.9,74.03898626]
[1729975350087,15.56679632,2497.0,2496.9,72.66151786]
[1729975350285,15.56679632,2497.0,2496.9,69.38667465]
[1729975350480,15.56679632,2497.0,2496.9,66.23944465]
[1729975350690,15.56679632,2497.0,2496.9,51.03565635]
[1729975350888,15.56679632,2497.0,2496.9,39.56786099]
[1729975351094,15.56679632,2497.0,2496.9,32.00795892]
[1729975351291,15.56679632,2497.0,2496.9,25.98712685]
[1729975351494,15.56679632,2497.0,2496.9,18.92302478]
[1729975351693,15.56679632,2497.0,2496.9,11.92500271]
[1729975351893,15.56679632,2497.0,2496.9,5.90417064]
[1729975351894,15.5668102,2497.0,2496.9,5.90417064]
[1729975352196,15.5668102,2497.0,2496.9,4.18600064]
[1729975352795,15.5668102,2497.0,2496.9,3.25258064]
[1729975352991,15.5668102,2497.0,2496.9,0.98332306]
[1729975353297,0.40109,2496.3,2496.2,1.3565]
[1729975353493,5.81428987,2496.3,2496.2,1.3565]
[1729975358311,5.87769758,2496.3,2496.2,1.3565]
[1729975359904,5.877698,2496.3,2496.2,1.3565]
[1729975360511,5.87769761,2496.3,2496.2,1.3565]
[1729975362211,5.87769761,2496.3,2496.2,0.6626]
[1729975362910,9.48300761,2496.3,2496.1,0.6667]
[1729975363115,9.48300761,2496.3,2495.9,0.6892]
[1729975363116,7.37800748,2496.2,2495.9,0.6892]
[1729975363316,4.90933987,2496.0,2495.9,1.3993]
[1729975363517,4.97274761,2496.0,2495.9,1.3993]
[1729975363702,8.97914761,2496.0,2495.9,1.3993]
[1729975365310,8.91573987,2496.0,2495.9,1.3993]
[1729975367409,9.89624018,2496.0,2495.9,1.3993]
[1729975372122,5.88984018,2496.0,2495.9,1.3993]
[1729975373358,3.2078,2496.0,2495.9,1.3993]
[1729975373520,4.1108,2496.0,2495.9,1.3993]
[1729975374020,5.41119987,2496.0,2495.9,1.3993]
[1729975374417,5.81233987,2496.0,2495.9,1.3993]
[1729975374826,5.41119987,2496.0,2495.9,1.3993]
[1729975375015,5.81233987,2496.0,2495.9,1.3993]
[1729975379233,2.60453987,2496.0,2495.9,1.3993]
[1729975379741,7.32153987,2496.0,2495.9,1.3993]
[1729975380236,3.31513987,2496.0,2495.9,1.3993]
[1729975381724,3.31513987,2496.0,2495.9,0.7101]
[1729975382029,3.98153987,2496.0,2495.9,0.7101]
[1729975383641,0.40119,2495.7,2495.6,0.6481]
[1729975383829,1.70158987,2495.7,2495.6,0.6481]
[1729975384729,1.30039987,2495.7,2495.6,0.6481]
[1729975385733,1.70158987,2495.7,2495.6,0.6481]
[1729975386239,1.30039987,2495.7,2495.6,0.6481]
[1729975386434,1.70156987,2495.8,2495.6,0.6481]
[1729975386640,0.40119,2495.7,2495.6,0.6481]
[1729975386832,1.70157987,2495.8,2495.6,0.6481]
[1729975387942,1.30039987,2495.8,2495.6,0.6481]
[1729975388145,0.40119,2495.7,2495.6,0.6481]
[1729975388641,1.70157987,2495.8,2495.6,0.6481]
[1729975389340,1.30039987,2495.8,2495.6,0.6481]
[1729975389542,1.70156987,2495.8,2495.6,0.6481]
[1729975390740,1.30039987,2495.8,2495.6,0.6481]
[1729975390955,1.70156987,2495.8,2495.6,0.6481]
[1729975391837,1.30039987,2495.8,2495.6,0.6481]
[1729975392540,1.70156987,2495.8,2495.6,0.6481]
[1729975392737,0.40116,2495.9,2495.6,0.6481]
[1729975392935,0.40119,2495.7,2495.6,0.6481]
[1729975393133,1.70158987,2495.7,2495.6,0.6481]
[1729975393337,1.30039987,2495.7,2495.6,0.6481]
[1729975393741,0.40118,2495.8,2495.6,4.6553]
[1729975394046,0.40118,2495.8,2495.6,0.6481]
[1729975394748,0.904,2495.7,2495.6,0.6481]
[1729975395248,0.904,2495.7,2495.6,5.95569987]
[1729975395845,0.904,2495.7,2495.6,6.35689987]
[1729975396241,0.904,2495.7,2495.6,6.48236461]
[1729975397148,0.902,2495.7,2495.6,6.48236461]
[1729975397646,0.902,2495.7,2495.6,5.18196474]
[1729975397833,0.902,2495.7,2495.6,6.48236461]
[1729975398442,0.902,2495.7,2495.6,6.48236129]
[1729975399045,1.30319,2495.7,2495.6,6.08116129]
[1729975399544,0.902,2495.7,2495.6,6.48236129]
[1729975401443,0.902,2495.7,2495.6,6.35689987]
[1729975402144,0.902,2495.7,2495.6,6.48236253]
[1729975402352,1.30319,2495.7,2495.6,6.48236253]
[1729975402649,1.30319,2495.7,2495.6,6.35689987]
[1729975403241,1.30319,2495.7,2495.6,6.48236278]
[1729975404146,1.30319,2495.7,2495.6,2.47516278]
[1729975408049,0.902,2495.7,2495.6,2.47516278]
[1729975408952,0.902,2495.7,2495.6,2.67589985]
[1729975409343,0.902,2495.7,2495.6,6.68309985]
[1729975410859,0.902,2495.7,2495.6,6.35689987]
[1729975411052,0.902,2495.7,2495.6,6.68309868]
[1729975413154,0.902,2495.7,2495.6,2.67589868]
[1729975413452,0.902,2495.7,2495.6,6.68309868]
[1729975414557,0.902,2495.7,2495.6,6.35689987]
[1729975414758,0.902,2495.7,2495.6,6.6830935]
[1729975415253,0.902,2495.7,2495.6,2.6758935]
[1729975416955,0.902,2495.7,2495.6,2.47515896]
[1729975420252,0.902,2495.7,2495.6,6.48235896]
[1729975422156,0.902,2495.7,2495.6,6.48235921]
[1729975424059,0.902,2495.7,2495.6,6.68309453]
[1729975425757,0.902,2495.7,2495.6,6.48235956]
[1729975425966,0.902,2495.7,2495.6,5.3826952]
[1729975427455,0.902,2495.7,2495.6,8.5904952]
[1729975428260,0.902,2495.7,2495.6,5.3826952]
[1729975428561,0.902,2495.7,2495.6,8.5904952]
[1729975428760,1.30319,2495.7,2495.6,4.38255969]
[1729975428961,1.86119,2495.7,2495.6,4.58329789]
[1729975429354,1.86119,2495.7,2495.6,4.2571]
[1729975429560,1.46,2495.7,2495.6,4.38256218]
[1729975430264,1.46,2495.7,2495.6,4.58330197]
[1729975430863,1.46,2495.7,2495.6,1.37550197]
[1729975431260,1.46,2495.7,2495.6,4.58330197]
[1729975431661,1.46,2495.7,2495.6,1.37550197]
[1729975431861,1.46,2495.7,2495.6,4.58330197]
[1729975433376,1.46,2495.7,2495.6,1.0493]
[1729975433580,1.46,2495.7,2495.6,4.58329756]
[1729975433863,0.558,2495.7,2495.6,4.58329756]
[1729975434063,1.459,2495.7,2495.6,4.58329756]
[1729975435674,1.459,2495.7,2495.6,1.37549756]
[1729975435866,1.459,2495.7,2495.6,4.58329756]
[1729975436669,1.459,2495.7,2495.6,1.0493]
[1729975436859,1.459,2495.7,2495.6,1.3754966]
[1729975437262,1.459,2495.7,2495.6,4.5832966]
[1729975438774,1.459,2495.7,2495.6,1.3754966]
[1729975439266,1.459,2495.7,2495.6,1.37549822]
[1729975440273,4.50988,2496.4,2496.3,0.40109]
[1729975440471,4.50988,2496.4,2496.2,1.30039987]
[1729975440472,0.40109,2496.3,2496.2,1.30039987]
[1729975440668,0.4011,2496.3,2496.1,1.30039987]
[1729975440887,1.1412,2496.2,2496.1,1.70151987]
[1729975441073,1.1412,2496.2,2496.1,0.52656247]
[1729975441378,2.0422,2496.2,2496.1,0.40112]
[1729975442679,2.0422,2496.2,2495.9,3.7786]
[1729975442680,3.34259987,2496.2,2495.9,4.17975]
[1729975442878,1.30039987,2496.1,2495.9,3.60895]
[1729975443175,1.30039987,2496.1,2495.9,3.2078]
[1729975443176,1.70151987,2496.1,2495.9,3.2078]
[1729975443386,1.30039987,2496.1,2495.9,3.60895]
[1729975444185,1.70151987,2496.1,2495.9,3.60895]
[1729975444580,1.70151987,2496.1,2495.9,3.2078]
[1729975444978,1.70151987,2496.1,2495.9,3.60895]
[1729975445376,1.70151987,2496.1,2495.9,0.40115]
[1729975446383,1.70151987,2496.1,2496.0,0.12544772]
[1729975447985,1.70151987,2496.1,2496.0,0.12544748]
[1729975450577,2.0422,2496.2,2496.0,1.42585051]
[1729975450780,2.0422,2496.2,2496.1,0.96572]
[1729975451683,1.1412,2496.2,2496.1,0.96572]
[1729975451885,2.0422,2496.2,2496.1,0.96572]
[1729975452081,2.0422,2496.2,2496.1,1.09116361]
[1729975452384,2.0422,2496.2,2496.1,0.96572]
[1729975452582,2.0422,2496.2,2496.1,1.09116262]
[1729975452882,2.0422,2496.2,2496.1,0.96572]
[1729975453082,2.0422,2496.2,2496.1,1.09116252]
[1729975453278,2.0422,2496.2,2496.1,0.96572]
[1729975454584,2.0422,2496.2,2496.1,0.5646]
[1729975454880,2.0422,2496.2,2496.1,0.96572]
[1729975455482,2.0422,2496.2,2496.1,0.5646]
[1729975455689,1.1412,2496.2,2496.1,0.5646]
[1729975455987,1.1412,2496.2,2496.1,0.96572]
[1729975455988,2.0422,2496.2,2496.1,0.96572]
[1729975457183,3.34259987,2496.2,2496.1,0.96572]
[1729975457875,3.34259987,2496.2,2496.1,0.5646]
[1729975458080,3.34259987,2496.2,2496.1,0.96572]
[1729975459889,3.34259987,2496.2,2496.1,0.5646]
[1729975460279,3.34259987,2496.2,2496.1,0.96572]
[1729975468788,3.34259987,2496.2,2496.1,0.40112]
[1729975479220,3.34059987,2496.2,2496.1,0.40112]
[1729975485124,3.34059987,2496.2,2495.9,1.1427]
[1729975485324,3.34059987,2496.2,2496.0,0.5265783]
[1729975485525,3.34059987,2496.2,2496.1,0.1254483]
[1729975485922,3.34059987,2496.2,2496.1,0.12544894]
[1729975486120,3.34059987,2496.2,2496.1,0.52656894]
[1729975486323,3.34059987,2496.2,2496.1,0.52656879]
[1729975486817,3.34059987,2496.2,2496.1,0.12544953]